[Event "January 2 Late 2024"]
[Site "https://www.chess.com"]
[Date "2024.01.02"]
[Round "2"]
[White "Harish, Neeraj"]
[Black "Gutierrez Olivares, Daniel"]
[Result "0-1"]
[Board "192"]
[TimeControl "180+1"]
[WhiteFideId "30958130"]
[BlackFideId "2264005"]
[WhiteElo "2269"]
[BlackElo "2487"]
[WhiteTeam "USA"]
[BlackTeam "ESP"]
[WhiteClock "0:01:57"]
[BlackClock "0:01:49"]

1. e4 {[%clk 0:03:00]}  e6 {[%clk 0:02:53]} 2. d4 {[%clk 0:02:55]}  d5 {[%clk 0:02:49]} 3. e5 {[%clk 0:02:52]}  c5 {[%clk 0:02:48]} 4. c3 {[%clk 0:02:52]}  Nc6 {[%clk 0:02:49]} 5. Nf3 {[%clk 0:02:48]}  Bd7 {[%clk 0:02:49]} 6. Be2 {[%clk 0:02:46]}  Nge7 {[%clk 0:02:46]} 7. Na3 {[%clk 0:02:44]}  cxd4 {[%clk 0:02:42]} 8. cxd4 {[%clk 0:02:42]}  Nf5 {[%clk 0:02:43]} 9. Nc2 {[%clk 0:02:42]}  Be7 {[%clk 0:02:41]} 10. O-O {[%clk 0:02:41]}  O-O {[%clk 0:02:35]} 11. Bd2 {[%clk 0:02:36]}  Rc8 {[%clk 0:02:21]} 12. Bc3 {[%clk 0:02:34]}  b5 {[%clk 0:02:14]} 13. a3 {[%clk 0:02:22]}  Qb6 {[%clk 0:02:08]} 14. Ne3 {[%clk 0:02:20]}  Nxe3 {[%clk 0:02:05]} 15. fxe3 {[%clk 0:02:21]}  a5 {[%clk 0:02:01]} 16. Qe1 {[%clk 0:02:03]}  b4 {[%clk 0:01:55]} 17. axb4 {[%clk 0:02:00]}  Nxb4 {[%clk 0:01:49]} 18. Qh4 {[%clk 0:01:57]} 0-1

[Event "January 2 Late 2024"]
[Site "https://www.chess.com"]
[Date "2024.01.02"]
[Round "2"]
[White "Unuk, Laura"]
[Black "Delgado Kuffo, Andres"]
[Result "0-1"]
[Board "193"]
[TimeControl "180+1"]
[WhiteFideId "14609215"]
[BlackFideId "3600475"]
[WhiteElo "2486"]
[BlackElo "2265"]
[WhiteTeam "SLO"]
[BlackTeam "ECU"]
[WhiteClock "0:00:41"]
[BlackClock "0:00:24"]

1. e4 {[%clk 0:03:00]}  e6 {[%clk 0:02:18]} 2. d4 {[%clk 0:02:56]}  d5 {[%clk 0:02:18]} 3. Nc3 {[%clk 0:02:56]}  Nf6 {[%clk 0:02:18]} 4. e5 {[%clk 0:02:56]}  Nfd7 {[%clk 0:02:18]} 5. f4 {[%clk 0:02:57]}  c5 {[%clk 0:02:09]} 6. Nf3 {[%clk 0:02:57]}  Nc6 {[%clk 0:02:09]} 7. Be3 {[%clk 0:02:57]}  cxd4 {[%clk 0:02:10]} 8. Nxd4 {[%clk 0:02:57]}  Qb6 {[%clk 0:02:10]} 9. Qd2 {[%clk 0:02:51]}  Qxb2 {[%clk 0:02:09]} 10. Rb1 {[%clk 0:02:51]}  Qa3 {[%clk 0:02:09]} 11. Rb3 {[%clk 0:02:20]}  Qa5 {[%clk 0:02:08]} 12. Rb5 {[%clk 0:01:46]}  Qd8 {[%clk 0:01:58]} 13. Bd3 {[%clk 0:01:40]}  a6 {[%clk 0:01:52]} 14. Rb1 {[%clk 0:01:39]}  Bc5 {[%clk 0:01:47]} 15. Nxc6 {[%clk 0:01:28]}  bxc6 {[%clk 0:01:46]} 16. Ne2 {[%clk 0:01:16]}  Bxe3 {[%clk 0:01:39]} 17. Qxe3 {[%clk 0:01:17]}  Qa5+ {[%clk 0:01:39]} 18. Kf2 {[%clk 0:01:16]}  O-O {[%clk 0:01:38]} 19. Rb3 {[%clk 0:01:12]}  f6 {[%clk 0:01:32]} 20. Bxh7+ {[%clk 0:01:08]}  Kxh7 {[%clk 0:01:32]} 21. Qh3+ {[%clk 0:01:08]}  Kg8 {[%clk 0:01:32]} 22. Qxe6+ {[%clk 0:01:08]}  Rf7 {[%clk 0:01:31]} 23. Qxc6 {[%clk 0:01:03]}  Qc5+ {[%clk 0:01:28]} 24. Qxc5 {[%clk 0:01:03]}  Nxc5 {[%clk 0:01:28]} 25. Rb6 {[%clk 0:01:02]}  fxe5 {[%clk 0:01:27]} 26. Rd1 {[%clk 0:01:02]}  Bg4 {[%clk 0:01:08]} 27. Rxd5 {[%clk 0:00:57]}  Ne4+ {[%clk 0:01:08]} 28. Ke3 {[%clk 0:00:56]}  Bxe2 {[%clk 0:01:08]} 29. Kxe2 {[%clk 0:00:50]}  Nc3+ {[%clk 0:01:08]} 30. Kd3 {[%clk 0:00:50]}  Nxd5 {[%clk 0:01:08]} 31. Rd6 {[%clk 0:00:51]}  Nxf4+ {[%clk 0:01:08]} 32. Ke4 {[%clk 0:00:51]}  Re8 {[%clk 0:01:07]} 33. g3 {[%clk 0:00:51]}  Nh5 {[%clk 0:01:02]} 34. c4 {[%clk 0:00:50]}  Nf6+ {[%clk 0:00:56]} 35. Ke3 {[%clk 0:00:51]}  Ng4+ {[%clk 0:00:55]} 36. Ke4 {[%clk 0:00:49]}  Nxh2 {[%clk 0:00:54]} 37. Rxa6 {[%clk 0:00:48]}  Nf1 {[%clk 0:00:53]} 38. g4 {[%clk 0:00:47]}  Rf4+ {[%clk 0:00:52]} 39. Kd3 {[%clk 0:00:46]}  Rd8+ {[%clk 0:00:52]} 40. Kc3 {[%clk 0:00:46]}  Rc8 {[%clk 0:00:51]} 41. Re6 {[%clk 0:00:42]}  Rfxc4+ {[%clk 0:00:46]} 42. Kd3 {[%clk 0:00:43]}  Rd4+ {[%clk 0:00:45]} 43. Ke2 {[%clk 0:00:43]}  Ng3+ {[%clk 0:00:43]} 44. Kf2 {[%clk 0:00:42]}  Rc3 {[%clk 0:00:40]} 45. Kg2 {[%clk 0:00:40]}  Nh5 {[%clk 0:00:33]} 46. Rxe5 {[%clk 0:00:40]}  Rd2+ {[%clk 0:00:28]} 47. Kf1 {[%clk 0:00:40]}  Rc1+ {[%clk 0:00:24]} 48. Re1 {[%clk 0:00:40]}  Ng3+ {[%clk 0:00:24]} 49. Kg1 {[%clk 0:00:41]}  Rxe1# {[%clk 0:00:24]} 0-1

[Event "January 2 Late 2024"]
[Site "https://www.chess.com"]
[Date "2024.01.02"]
[Round "2"]
[White "Player, Edmund C"]
[Black "Alimpic, Aleksa"]
[Result "0-1"]
[Board "194"]
[TimeControl "180+1"]
[WhiteFideId "406520"]
[BlackFideId "974323"]
[WhiteElo "2265"]
[BlackElo "2485"]
[WhiteTeam "ENG"]
[BlackTeam "SRB"]
[WhiteClock "0:00:00"]
[BlackClock "0:00:09"]

1. e4 {[%clk 0:03:00]}  c5 {[%clk 0:02:55]} 2. Nf3 {[%clk 0:02:59]}  d6 {[%clk 0:02:55]} 3. d4 {[%clk 0:02:58]}  cxd4 {[%clk 0:02:56]} 4. Nxd4 {[%clk 0:02:58]}  Nf6 {[%clk 0:02:56]} 5. Nc3 {[%clk 0:02:57]}  Nc6 {[%clk 0:02:56]} 6. Bg5 {[%clk 0:02:51]}  e6 {[%clk 0:02:56]} 7. Qd2 {[%clk 0:02:49]}  a6 {[%clk 0:02:50]} 8. O-O-O {[%clk 0:02:45]}  Bd7 {[%clk 0:02:51]} 9. f4 {[%clk 0:02:45]}  b5 {[%clk 0:02:48]} 10. a3 {[%clk 0:02:29]}  Be7 {[%clk 0:02:46]} 11. Nxc6 {[%clk 0:02:18]}  Bxc6 {[%clk 0:02:46]} 12. Bd3 {[%clk 0:02:17]}  O-O {[%clk 0:02:39]} 13. Rhg1 {[%clk 0:02:01]}  a5 {[%clk 0:02:22]} 14. e5 {[%clk 0:01:35]}  dxe5 {[%clk 0:02:15]} 15. fxe5 {[%clk 0:01:32]}  Nd5 {[%clk 0:02:15]} 16. Bxe7 {[%clk 0:01:28]}  Qxe7 {[%clk 0:02:16]} 17. Nxd5 {[%clk 0:01:20]}  Bxd5 {[%clk 0:02:10]} 18. Bxb5 {[%clk 0:01:15]}  Rfc8 {[%clk 0:02:01]} 19. Kb1 {[%clk 0:01:06]}  Rab8 {[%clk 0:01:56]} 20. a4 {[%clk 0:01:05]}  h6 {[%clk 0:01:25]} 21. g4 {[%clk 0:00:46]}  Bc4 {[%clk 0:01:10]} 22. Qxa5 {[%clk 0:00:21]}  Qc5 {[%clk 0:00:58]} 23. Qc3 {[%clk 0:00:11]}  Bxb5 {[%clk 0:00:43]} 24. Qxc5 {[%clk 0:00:10]}  Rxc5 {[%clk 0:00:44]} 25. axb5 {[%clk 0:00:11]}  Rcxb5 {[%clk 0:00:44]} 26. b3 {[%clk 0:00:10]}  Rxe5 {[%clk 0:00:44]} 27. Rge1 {[%clk 0:00:10]}  Rg5 {[%clk 0:00:29]} 28. h3 {[%clk 0:00:10]}  h5 {[%clk 0:00:29]} 29. gxh5 {[%clk 0:00:08]}  Rxh5 {[%clk 0:00:30]} 30. Rd3 {[%clk 0:00:09]}  e5 {[%clk 0:00:15]} 31. Kb2 {[%clk 0:00:09]}  Re8 {[%clk 0:00:15]} 32. b4 {[%clk 0:00:08]}  e4 {[%clk 0:00:14]} 33. Rde3 {[%clk 0:00:06]}  f5 {[%clk 0:00:14]} 34. c4 {[%clk 0:00:05]}  Kf7 {[%clk 0:00:10]} 35. b5 {[%clk 0:00:05]}  Ke6 {[%clk 0:00:10]} 36. Rd1 {[%clk 0:00:04]}  Ke5 {[%clk 0:00:09]} 37. Rd5+ {[%clk 0:00:04]}  Kf4 {[%clk 0:00:09]} 38. Re1 {[%clk 0:00:00]}  Rxh3 {[%clk 0:00:09]} 0-1

[Event "January 2 Late 2024"]
[Site "https://www.chess.com"]
[Date "2024.01.02"]
[Round "2"]
[White "Wang, Jalen"]
[Black "Lopez Del Alamo, Antonio"]
[Result "0-1"]
[Board "196"]
[TimeControl "180+1"]
[WhiteFideId "2078058"]
[BlackFideId "2227339"]
[WhiteElo "2484"]
[BlackElo "2261"]
[WhiteTeam "USA"]
[BlackTeam "ESP"]
[WhiteClock "0:02:02"]
[BlackClock "0:00:42"]

1. d4 {[%clk 0:03:00]}  Nf6 {[%clk 0:02:47]} 2. Bf4 {[%clk 0:03:01]}  g6 {[%clk 0:02:44]} 3. e3 {[%clk 0:03:00]}  d5 {[%clk 0:02:44]} 4. Nc3 {[%clk 0:03:01]}  Bg7 {[%clk 0:02:44]} 5. h4 {[%clk 0:03:01]}  h5 {[%clk 0:02:42]} 6. Nf3 {[%clk 0:03:01]}  O-O {[%clk 0:02:42]} 7. Qd2 {[%clk 0:03:01]}  c5 {[%clk 0:02:42]} 8. Ne5 {[%clk 0:03:00]}  Nc6 {[%clk 0:02:37]} 9. O-O-O {[%clk 0:03:00]}  Be6 {[%clk 0:02:23]} 10. f3 {[%clk 0:02:59]}  Rc8 {[%clk 0:02:22]} 11. Kb1 {[%clk 0:02:57]}  Qa5 {[%clk 0:02:14]} 12. Nxc6 {[%clk 0:02:53]}  bxc6 {[%clk 0:02:01]} 13. Nxd5 {[%clk 0:02:53]}  Qd8 {[%clk 0:01:59]} 14. Nxf6+ {[%clk 0:02:51]}  Bxf6 {[%clk 0:01:57]} 15. Be5 {[%clk 0:02:42]}  Bxe5 {[%clk 0:01:50]} 16. dxe5 {[%clk 0:02:43]}  Qb6 {[%clk 0:01:51]} 17. Qc3 {[%clk 0:02:38]}  Rb8 {[%clk 0:01:37]} 18. b3 {[%clk 0:02:33]}  a5 {[%clk 0:01:36]} 19. a4 {[%clk 0:02:33]}  Qa7 {[%clk 0:01:26]} 20. Bc4 {[%clk 0:02:32]}  Bxc4 {[%clk 0:01:24]} 21. Qxc4 {[%clk 0:02:33]}  Rb4 {[%clk 0:01:25]} 22. Qc3 {[%clk 0:02:31]}  c4 {[%clk 0:01:23]} 23. Ka2 {[%clk 0:02:30]}  Rfb8 {[%clk 0:01:20]} 24. Rb1 {[%clk 0:02:27]}  Qc5 {[%clk 0:01:20]} 25. Rhc1 {[%clk 0:02:19]}  e6 {[%clk 0:00:58]} 26. f4 {[%clk 0:02:17]}  Qd5 {[%clk 0:00:43]} 27. bxc4 {[%clk 0:02:02]}  Rxa4+ {[%clk 0:00:42]} 0-1

[Event "January 2 Late 2024"]
[Site "https://www.chess.com"]
[Date "2024.01.02"]
[Round "2"]
[White "Burdalev, Kirill"]
[Black "Marn, Jan"]
[Result "0-1"]
[Board "199"]
[TimeControl "180+1"]
[WhiteFideId "14121913"]
[BlackFideId "14619245"]
[WhiteElo "2249"]
[BlackElo "2478"]
[WhiteTeam "CZE"]
[BlackTeam "SLO"]
[WhiteClock "0:00:00"]
[BlackClock "0:00:09"]

1. d4 {[%clk 0:03:00]}  b6 {[%clk 0:02:58]} 2. e4 {[%clk 0:02:59]}  e6 {[%clk 0:02:58]} 3. Bd3 {[%clk 0:02:59]}  Bb7 {[%clk 0:02:57]} 4. Nf3 {[%clk 0:02:59]}  Nf6 {[%clk 0:02:57]} 5. Qe2 {[%clk 0:02:59]}  d5 {[%clk 0:02:56]} 6. e5 {[%clk 0:02:56]}  Ne4 {[%clk 0:02:56]} 7. O-O {[%clk 0:02:52]}  c5 {[%clk 0:02:53]} 8. c4 {[%clk 0:02:47]}  cxd4 {[%clk 0:02:44]} 9. cxd5 {[%clk 0:02:46]}  Qxd5 {[%clk 0:02:43]} 10. Re1 {[%clk 0:02:46]}  Nc5 {[%clk 0:02:43]} 11. Bc4 {[%clk 0:02:34]}  Qd7 {[%clk 0:02:36]} 12. Rd1 {[%clk 0:02:33]}  Nc6 {[%clk 0:02:35]} 13. Be3 {[%clk 0:02:29]}  dxe3 {[%clk 0:01:44]} 14. Rxd7 {[%clk 0:02:28]}  exf2+ {[%clk 0:01:44]} 15. Kxf2 {[%clk 0:02:25]}  Nxd7 {[%clk 0:01:45]} 16. Nc3 {[%clk 0:02:25]}  Bc5+ {[%clk 0:01:45]} 17. Kf1 {[%clk 0:02:25]}  O-O {[%clk 0:01:45]} 18. Rd1 {[%clk 0:02:24]}  Rad8 {[%clk 0:01:44]} 19. Ne4 {[%clk 0:02:13]}  Be7 {[%clk 0:01:00]} 20. Nd6 {[%clk 0:02:07]}  Ba8 {[%clk 0:01:00]} 21. a3 {[%clk 0:01:53]}  Ndxe5 {[%clk 0:00:50]} 22. Nxe5 {[%clk 0:01:51]}  Bxd6 {[%clk 0:00:48]} 23. Nxc6 {[%clk 0:01:28]}  Bxc6 {[%clk 0:00:49]} 24. Bd3 {[%clk 0:01:17]}  Bc5 {[%clk 0:00:35]} 25. b4 {[%clk 0:01:11]}  Bd4 {[%clk 0:00:30]} 26. Bc2 {[%clk 0:01:10]}  e5 {[%clk 0:00:24]} 27. Be4 {[%clk 0:01:08]}  Bd7 {[%clk 0:00:18]} 28. g4 {[%clk 0:01:05]}  g6 {[%clk 0:00:15]} 29. Kg2 {[%clk 0:01:02]}  Kg7 {[%clk 0:00:15]} 30. Qa6 {[%clk 0:00:57]}  f5 {[%clk 0:00:15]} 31. gxf5 {[%clk 0:00:53]}  gxf5 {[%clk 0:00:16]} 32. Bd5 {[%clk 0:00:50]}  Kh8 {[%clk 0:00:11]} 33. Qxa7 {[%clk 0:00:46]}  Bb5 {[%clk 0:00:11]} 34. Ba2 {[%clk 0:00:14]}  Rd7 {[%clk 0:00:11]} 35. Qxd7 {[%clk 0:00:05]}  Bxd7 {[%clk 0:00:10]} 36. Bb3 {[%clk 0:00:05]}  Ra8 {[%clk 0:00:10]} 37. a4 {[%clk 0:00:04]}  Bxa4 {[%clk 0:00:10]} 38. Bd5 {[%clk 0:00:00]}  Rd8 {[%clk 0:00:09]} 0-1

[Event "January 2 Late 2024"]
[Site "https://www.chess.com"]
[Date "2024.01.02"]
[Round "2"]
[White "Huang, Youhe"]
[Black "Rose, Felix"]
[Result "1-0"]
[Board "202"]
[TimeControl "180+1"]
[WhiteFideId "2629445"]
[BlackFideId "5105722"]
[WhiteElo "2475"]
[BlackElo "2241"]
[WhiteTeam "CAN"]
[BlackTeam "MEX"]
[WhiteClock "0:01:39"]
[BlackClock "0:00:00"]

1. e4 {[%clk 0:03:00]}  e5 {[%clk 0:02:59]} 2. Nf3 {[%clk 0:03:00]}  Nc6 {[%clk 0:03:00]} 3. Nc3 {[%clk 0:02:55]}  Nf6 {[%clk 0:03:00]} 4. Bb5 {[%clk 0:02:55]}  Bb4 {[%clk 0:02:59]} 5. a4 {[%clk 0:02:56]}  O-O {[%clk 0:02:54]} 6. O-O {[%clk 0:02:56]}  Bxc3 {[%clk 0:02:45]} 7. dxc3 {[%clk 0:02:57]}  Nxe4 {[%clk 0:02:45]} 8. Re1 {[%clk 0:02:57]}  d5 {[%clk 0:02:43]} 9. Bxc6 {[%clk 0:02:56]}  bxc6 {[%clk 0:02:43]} 10. Nxe5 {[%clk 0:02:57]}  Qh4 {[%clk 0:02:09]} 11. Qf3 {[%clk 0:02:47]}  Be6 {[%clk 0:01:31]} 12. Nxc6 {[%clk 0:02:44]}  Bg4 {[%clk 0:01:16]} 13. Qf4 {[%clk 0:02:42]}  g5 {[%clk 0:00:57]} 14. Ne7+ {[%clk 0:02:38]}  Kg7 {[%clk 0:00:51]} 15. Nf5+ {[%clk 0:02:30]}  Bxf5 {[%clk 0:00:50]} 16. Qxf5 {[%clk 0:02:30]}  Rae8 {[%clk 0:00:45]} 17. Be3 {[%clk 0:02:16]}  c6 {[%clk 0:00:25]} 18. f3 {[%clk 0:02:08]}  Nd6 {[%clk 0:00:21]} 19. Bd4+ {[%clk 0:02:00]}  f6 {[%clk 0:00:16]} 20. Qd7+ {[%clk 0:02:00]}  Rf7 {[%clk 0:00:09]} 21. Qxe8 {[%clk 0:01:53]}  Nxe8 {[%clk 0:00:08]} 22. Rxe8 {[%clk 0:01:54]}  Qf4 {[%clk 0:00:05]} 23. Rae1 {[%clk 0:01:54]}  Qc7 {[%clk 0:00:05]} 24. Bc5 {[%clk 0:01:53]}  Qb7 {[%clk 0:00:04]} 25. b4 {[%clk 0:01:50]}  Qa6 {[%clk 0:00:05]} 26. a5 {[%clk 0:01:45]}  Qc4 {[%clk 0:00:05]} 27. Bd4 {[%clk 0:01:45]}  a6 {[%clk 0:00:04]} 28. Ra8 {[%clk 0:01:44]}  Qa2 {[%clk 0:00:03]} 29. Rxa6 {[%clk 0:01:43]}  Qxc2 {[%clk 0:00:03]} 30. Rxc6 {[%clk 0:01:44]}  Qd2 {[%clk 0:00:00]} 31. Bf2 {[%clk 0:01:39]} 1-0

[Event "January 2 Late 2024"]
[Site "https://www.chess.com"]
[Date "2024.01.02"]
[Round "2"]
[White "Slade, Theodore"]
[Black "Doublekk14"]
[Result "1-0"]
[Board "205"]
[TimeControl "180+1"]
[WhiteFideId "426547"]
[WhiteElo "2467"]
[BlackElo "2237"]
[WhiteTeam "ENG"]
[WhiteClock "0:01:03"]
[BlackClock "0:00:00"]

1. d4 {[%clk 0:03:00]}  Nf6 {[%clk 0:02:57]} 2. c4 {[%clk 0:03:01]}  e6 {[%clk 0:02:57]} 3. g3 {[%clk 0:03:01]}  c5 {[%clk 0:02:57]} 4. d5 {[%clk 0:03:01]}  exd5 {[%clk 0:02:57]} 5. cxd5 {[%clk 0:03:02]}  d6 {[%clk 0:02:49]} 6. Nc3 {[%clk 0:03:03]}  g6 {[%clk 0:02:48]} 7. Bg2 {[%clk 0:03:04]}  Bg7 {[%clk 0:02:49]} 8. Nf3 {[%clk 0:03:04]}  O-O {[%clk 0:02:49]} 9. O-O {[%clk 0:03:05]}  a6 {[%clk 0:02:48]} 10. a4 {[%clk 0:03:05]}  b6 {[%clk 0:02:48]} 11. Bf4 {[%clk 0:03:01]}  Nh5 {[%clk 0:02:47]} 12. Nd2 {[%clk 0:02:59]}  Nxf4 {[%clk 0:02:45]} 13. gxf4 {[%clk 0:03:00]}  Qh4 {[%clk 0:02:37]} 14. e3 {[%clk 0:02:59]}  Bh3 {[%clk 0:02:35]} 15. Nc4 {[%clk 0:02:50]}  Nd7 {[%clk 0:02:01]} 16. Nxd6 {[%clk 0:02:45]}  Nf6 {[%clk 0:02:00]} 17. Qf3 {[%clk 0:02:34]}  Bxg2 {[%clk 0:01:47]} 18. Kxg2 {[%clk 0:02:34]}  Rfd8 {[%clk 0:01:29]} 19. Nc4 {[%clk 0:02:31]}  Rab8 {[%clk 0:01:16]} 20. Ne5 {[%clk 0:02:14]}  Rd6 {[%clk 0:01:02]} 21. Nc6 {[%clk 0:02:04]}  Re8 {[%clk 0:00:56]} 22. Rad1 {[%clk 0:01:51]}  Qh5 {[%clk 0:00:41]} 23. Qxh5 {[%clk 0:01:49]}  gxh5 {[%clk 0:00:28]} 24. Kf3 {[%clk 0:01:48]}  b5 {[%clk 0:00:21]} 25. axb5 {[%clk 0:01:47]}  axb5 {[%clk 0:00:20]} 26. e4 {[%clk 0:01:22]}  Rd7 {[%clk 0:00:07]} 27. e5 {[%clk 0:01:18]}  Ng4 {[%clk 0:00:04]} 28. Kg2 {[%clk 0:01:04]}  b4 {[%clk 0:00:00]} 29. Ne4 {[%clk 0:01:03]} 1-0

[Event "January 2 Late 2024"]
[Site "https://www.chess.com"]
[Date "2024.01.02"]
[Round "2"]
[White "Bhavikatti, Neil"]
[Black "Arlo2024"]
[Result "1-0"]
[Board "208"]
[TimeControl "180+1"]
[WhiteFideId "30935024"]
[WhiteElo "2461"]
[BlackElo "2207"]
[WhiteTeam "USA"]
[WhiteClock "0:00:15"]
[BlackClock "0:00:00"]

1. d4 {[%clk 0:03:00]}  Nf6 {[%clk 0:02:56]} 2. c4 {[%clk 0:03:01]}  c5 {[%clk 0:02:56]} 3. d5 {[%clk 0:03:00]}  b5 {[%clk 0:02:55]} 4. cxb5 {[%clk 0:02:59]}  a6 {[%clk 0:02:56]} 5. e3 {[%clk 0:02:59]}  g6 {[%clk 0:02:56]} 6. Nc3 {[%clk 0:02:58]}  Bg7 {[%clk 0:02:56]} 7. Nf3 {[%clk 0:02:57]}  O-O {[%clk 0:02:57]} 8. a4 {[%clk 0:02:53]}  Bb7 {[%clk 0:02:55]} 9. Be2 {[%clk 0:02:32]}  e6 {[%clk 0:02:55]} 10. dxe6 {[%clk 0:02:28]}  fxe6 {[%clk 0:02:55]} 11. O-O {[%clk 0:02:28]}  d5 {[%clk 0:02:54]} 12. bxa6 {[%clk 0:02:25]}  Nxa6 {[%clk 0:02:48]} 13. Qb3 {[%clk 0:02:14]}  Nb4 {[%clk 0:02:45]} 14. Nb5 {[%clk 0:02:09]}  Qe7 {[%clk 0:02:32]} 15. Bd2 {[%clk 0:02:08]}  Nc6 {[%clk 0:02:15]} 16. Rfc1 {[%clk 0:02:07]}  Ne4 {[%clk 0:02:12]} 17. Be1 {[%clk 0:02:07]}  Na5 {[%clk 0:01:58]} 18. Qa3 {[%clk 0:01:43]}  Rfc8 {[%clk 0:01:48]} 19. Rab1 {[%clk 0:01:42]}  Bc6 {[%clk 0:01:23]} 20. b4 {[%clk 0:01:39]}  Nb7 {[%clk 0:00:48]} 21. bxc5 {[%clk 0:01:09]}  Nbxc5 {[%clk 0:00:43]} 22. a5 {[%clk 0:01:08]}  Bf8 {[%clk 0:00:18]} 23. Qa2 {[%clk 0:00:49]}  Bg7 {[%clk 0:00:14]} 24. Nbd4 {[%clk 0:00:40]}  Bb7 {[%clk 0:00:12]} 25. Bb4 {[%clk 0:00:34]}  Qd7 {[%clk 0:00:08]} 26. Bb5 {[%clk 0:00:31]}  Qd8 {[%clk 0:00:07]} 27. Nb3 {[%clk 0:00:18]}  Na6 {[%clk 0:00:05]} 28. Be1 {[%clk 0:00:15]}  Qe7 {[%clk 0:00:00]} 29. Nfd4 {[%clk 0:00:15]} 1-0

[Event "January 2 Late 2024"]
[Site "https://www.chess.com"]
[Date "2024.01.02"]
[Round "2"]
[White "Bullen, Alex"]
[Black "Lopusiewicz, Piotr"]
[Result "0-1"]
[Board "209"]
[TimeControl "180+1"]
[WhiteFideId "1801627"]
[BlackFideId "1116029"]
[WhiteElo "2205"]
[BlackElo "2459"]
[WhiteTeam "WLS"]
[BlackTeam "POL"]
[WhiteClock "0:00:08"]
[BlackClock "0:00:04"]

1. d4 {[%clk 0:03:00]}  Nf6 {[%clk 0:02:59]} 2. Nf3 {[%clk 0:03:01]}  d5 {[%clk 0:02:59]} 3. c4 {[%clk 0:03:01]}  e6 {[%clk 0:02:59]} 4. cxd5 {[%clk 0:03:00]}  exd5 {[%clk 0:02:59]} 5. Nc3 {[%clk 0:03:01]}  c6 {[%clk 0:02:59]} 6. Bf4 {[%clk 0:03:02]}  Bf5 {[%clk 0:02:56]} 7. e3 {[%clk 0:03:02]}  Bd6 {[%clk 0:02:53]} 8. Bxd6 {[%clk 0:02:58]}  Qxd6 {[%clk 0:02:52]} 9. Bd3 {[%clk 0:02:59]}  Bxd3 {[%clk 0:02:52]} 10. Qxd3 {[%clk 0:02:59]}  Nbd7 {[%clk 0:02:52]} 11. O-O {[%clk 0:02:58]}  O-O {[%clk 0:02:52]} 12. Rab1 {[%clk 0:02:48]}  a5 {[%clk 0:02:50]} 13. a3 {[%clk 0:02:47]}  Rfe8 {[%clk 0:02:50]} 14. Rfc1 {[%clk 0:02:42]}  Ne4 {[%clk 0:02:41]} 15. Na4 {[%clk 0:02:36]}  b5 {[%clk 0:02:27]} 16. Nc3 {[%clk 0:02:31]}  a4 {[%clk 0:02:27]} 17. Qc2 {[%clk 0:02:25]}  Rac8 {[%clk 0:01:55]} 18. Nxe4 {[%clk 0:02:24]}  dxe4 {[%clk 0:01:55]} 19. Nd2 {[%clk 0:02:18]}  f5 {[%clk 0:01:23]} 20. b4 {[%clk 0:02:04]}  Re6 {[%clk 0:01:05]} 21. Nf1 {[%clk 0:02:03]}  Nf6 {[%clk 0:00:58]} 22. Qc5 {[%clk 0:02:00]}  Nd5 {[%clk 0:00:53]} 23. Qxd6 {[%clk 0:01:57]}  Rxd6 {[%clk 0:00:53]} 24. Rc5 {[%clk 0:01:56]}  Rf8 {[%clk 0:00:48]} 25. Ng3 {[%clk 0:01:52]}  g6 {[%clk 0:00:46]} 26. Ne2 {[%clk 0:01:52]}  h5 {[%clk 0:00:40]} 27. Rbc1 {[%clk 0:01:52]}  Rff6 {[%clk 0:00:35]} 28. Nc3 {[%clk 0:01:50]}  Nb6 {[%clk 0:00:33]} 29. d5 {[%clk 0:01:27]}  Nd7 {[%clk 0:00:22]} 30. Rxc6 {[%clk 0:01:01]}  Rxc6 {[%clk 0:00:21]} 31. dxc6 {[%clk 0:01:02]}  Rxc6 {[%clk 0:00:22]} 32. Kf1 {[%clk 0:00:57]}  Ne5 {[%clk 0:00:20]} 33. Ke2 {[%clk 0:00:49]}  Nd3 {[%clk 0:00:13]} 34. Rc2 {[%clk 0:00:47]}  Kf7 {[%clk 0:00:10]} 35. Kd1 {[%clk 0:00:43]}  Nxf2+ {[%clk 0:00:08]} 36. Kd2 {[%clk 0:00:26]}  Ng4 {[%clk 0:00:04]} 37. h3 {[%clk 0:00:20]}  Ne5 {[%clk 0:00:04]} 38. Nxb5 {[%clk 0:00:18]}  Rxc2+ {[%clk 0:00:03]} 39. Kxc2 {[%clk 0:00:19]}  Nc4 {[%clk 0:00:03]} 40. Nc3 {[%clk 0:00:17]}  Nxe3+ {[%clk 0:00:03]} 41. Kb2 {[%clk 0:00:13]}  Nxg2 {[%clk 0:00:04]} 42. Nxa4 {[%clk 0:00:13]}  e3 {[%clk 0:00:04]} 43. Kc2 {[%clk 0:00:08]}  e2 {[%clk 0:00:04]} 0-1